fUSD/lending_fUSD_20260227
["ID","MTS","AMOUNT","RATE_DAILY","PERIOD"]
[406792677,1772196640322,-515.46401169,0.00019489,2]
[406792678,1772196640332,-558.59,0.00020341,2]
[406792679,1772196640341,-4265.24,0.00021524,2]
[406792680,1772196640350,-618.0,0.00021586,2]
[406792681,1772196640360,-150.0,0.00021586,2]
[406792682,1772196640371,-4573.0,0.00021586,2]
[406792683,1772196640380,-150.0,0.00021644,2]
[406792684,1772196640389,-468.0,0.00021644,2]
[406792685,1772196640399,-150.0,0.00021644,2]
[406792686,1772196640412,-150.0,0.00021644,2]
[406792687,1772196640421,-150.0,0.00021644,2]
[406792688,1772196640431,-150.0,0.00021699,2]
[406792689,1772196640442,-468.0,0.00021699,2]
[406792690,1772196640452,-150.0,0.00021699,2]
[406792691,1772196640461,-150.0,0.00021699,2]
[406792692,1772196640470,-150.0,0.00021699,2]
[406792693,1772196640480,-200.0,0.00021754,2]
[406792694,1772196640489,-468.0,0.00021754,2]
[406792695,1772196640500,-150.0,0.00021754,2]
[406792696,1772196640510,-177.0,0.00021754,2]
[406792697,1772196640520,-200.0,0.00021754,2]
[406792698,1772196640529,-468.0,0.00021808,2]
[406792699,1772196640538,-150.0,0.00021808,2]
[406792700,1772196640548,-468.0,0.00021863,2]
[406792701,1772196640557,-150.0,0.00021863,2]
[406792702,1772196640567,-468.0,0.00021918,2]
[406792703,1772196640576,-250.0,0.00021918,2]
[406792704,1772196640585,-468.0,0.00021973,2]
[406792705,1772196640594,-468.0,0.00022028,2]
[406792706,1772196640603,-468.0,0.00022082,2]
[406792707,1772196640612,-27500.1298384,0.00022108,2]
[406792708,1772196640622,-468.0,0.00022137,2]
[406792709,1772196640631,-468.0,0.00022192,2]
[406792710,1772196640641,-468.0,0.00022247,2]
[406792711,1772196640660,-468.0,0.00022302,2]
[406792712,1772196640669,-468.0,0.00022356,2]
[406792713,1772196640679,-468.0,0.00022411,2]
[406792714,1772196640689,-468.0,0.00022466,2]
[406792715,1772196640701,-468.0,0.00022521,2]
[406792716,1772196640711,-509.0,0.0002255,8]
[406792717,1772196640720,-468.0,0.00022576,2]
[406792718,1772196640730,-468.0,0.0002263,2]
[406792719,1772196640743,-468.0,0.00022685,2]
[406792720,1772196640753,-468.0,0.0002274,2]
[406792721,1772196640762,-468.0,0.00022795,2]
[406792722,1772196640772,-468.0,0.00022849,2]
[406792723,1772196640783,-486.0,0.00022904,2]
[406792724,1772196640796,-160.0,0.00023,2]
[406792725,1772196640805,-577.79,0.00023207,2]
[406792726,1772196640814,-18967.79323056,0.00023238,2]
[406792727,1772196640824,-515.46401169,0.00023474,2]
[406792728,1772196640834,-1850.189584,0.00023747,2]
[406792729,1772196640845,-44321.4577263,0.00024046,2]
[406792730,1772196640856,-618.0,0.00024586,2]
[406792731,1772196640867,-150.0,0.00024658,2]
[406792732,1772196640877,-1000.0,0.00024658,2]
[406792733,1772196640887,-6136.1083749,0.00024908,2]
[406792734,1772196640897,-576.81143887,0.00024938,20]
[406792735,1772196640912,-248.88,0.00025144,14]
[406792736,1772196640922,-1369.1508443,0.00025533,2]
[406792737,1772196640933,-614.39365801,0.00025565,2]
[406792738,1772196640944,-999.83604702,0.00025663,21]
[406792739,1772196640953,-1500.0,0.00025769,120]
[406792740,1772196640962,-150.0,0.0002589,2]
[406792741,1772196640973,-200.0,0.00025984,2]
[406792742,1772196640982,-509.0,0.0002638,12]
[406792743,1772196640992,-500.0,0.00027096,2]
[406792744,1772196641003,-9889.4539604,0.00027097,2]
[406792745,1772196641014,-18967.79323056,0.0002717,2]
[406792746,1772196641025,-150.0,0.00027185,2]
[406792747,1772196641035,-626.0,0.00027228,10]
[406792748,1772196641045,-994.0,0.00027228,10]
[406792749,1772196641056,-1000.0,0.00027397,20]
[406792750,1772196641067,-300.0,0.00027397,2]
[406792751,1772196641077,-515.46401169,0.00027459,2]
[406792752,1772196641087,-500.0,0.00027553,120]
[406792753,1772196641097,-618.0,0.00027586,2]
[406792754,1772196641109,-2206.6354459,0.00027778,2]
[406792755,1772196641121,-150.0,0.00028544,2]
[406792756,1772196641130,-1268.20532487,0.00028564,27]
[406792757,1772196641140,-1850.189584,0.00029161,2]
[406792758,1772196641151,-500.0,0.00029178,2]
[406792759,1772196641163,-161.79551362,0.00029178,2]
[406792760,1772196641173,-1357.66175086,0.00029289,28]
[406792761,1772196641184,-150.0,0.00029971,2]
[406792762,1772196641195,-20400.0,0.0003,120]
[406792763,1772196641338,-509.0,0.0003021,15]
[406792764,1772196641349,-151.0,0.00030463,2]
[406792765,1772196641359,-500.0,0.00030463,2]
[406792766,1772196641370,-187.78006525,0.00030463,2]
[406792767,1772196641381,-500.0,0.00030463,2]
[406792768,1772196641392,-646.65982734,0.00030463,2]
[406792769,1772196641408,-500.0,0.00030463,2]
[406792770,1772196641419,-500.0,0.00030463,2]
[406792771,1772196641430,-250.0,0.00030463,2]
[406792772,1772196641441,-500.0,0.00030463,2]
[406792773,1772196641452,-500.0,0.00030463,2]
[406792774,1772196641462,-500.0,0.00030463,2]
[406792775,1772196641474,-500.0,0.00030463,2]
[406792776,1772196641484,-500.0,0.00030463,2]
[406792777,1772196641495,-500.0,0.00030463,2]
[406792778,1772196641506,-250.0,0.00030463,2]
[406792779,1772196641515,-500.0,0.00030463,2]
[406792780,1772196641526,-500.0,0.00030463,2]
[406792781,1772196641536,-250.0,0.00030463,2]
[406792782,1772196641545,-500.0,0.00030463,2]
[406792783,1772196641556,-500.0,0.00030463,2]
[406792784,1772196641566,-250.0,0.00030463,2]
[406792785,1772196641575,-500.0,0.00030463,2]
[406792786,1772196641586,-500.0,0.00030463,2]
[406792787,1772196641596,-500.0,0.00030463,2]
[406792788,1772196641608,-250.0,0.00030463,2]
[406792789,1772196641617,-500.0,0.00030463,2]
[406792790,1772196641627,-500.0,0.00030463,2]
[406792791,1772196641638,-250.0,0.00030463,2]
[406792792,1772196641648,-500.0,0.00030463,2]
[406792793,1772196641657,-500.0,0.00030463,2]
[406792794,1772196641667,-250.0,0.00030463,2]
[406792795,1772196641676,-500.0,0.00030463,2]
[406792796,1772196641685,-500.0,0.00030463,2]
[406792797,1772196641697,-250.0,0.00030463,2]
[406792798,1772196641706,-500.0,0.00030463,2]
[406792799,1772196641715,-500.0,0.00030463,2]
[406792800,1772196641724,-500.0,0.00030463,2]
[406792801,1772196641734,-250.0,0.00030463,2]
[406792802,1772196641743,-174.61919141,0.00030463,2]
[406792803,1772196641753,-500.0,0.00030463,2]
[406792804,1772196641762,-250.0,0.00030463,2]
[406792805,1772196641771,-500.0,0.00030463,2]
[406792806,1772196641780,-1338.33623944,0.00030463,2]
[406792807,1772196641789,-250.0,0.00030463,2]
[406792808,1772196641798,-250.0,0.00030463,2]
[406792809,1772196641807,-250.0,0.00030463,2]
[406792810,1772196641816,-578.20924308,0.00030463,2]
[406792811,1772196641826,-250.0,0.00030463,2]
[406792812,1772196641835,-250.0,0.00030463,2]
[406792813,1772196641844,-250.0,0.00030463,2]
[406792814,1772196641853,-250.0,0.00030463,2]
[406792815,1772196641863,-250.0,0.00030463,2]
[406792816,1772196641872,-250.0,0.00030463,2]
[406792817,1772196641881,-250.0,0.00030463,2]
[406792818,1772196641889,-250.0,0.00030463,2]
[406792819,1772196641899,-500.0,0.00030463,2]
[406792820,1772196641908,-250.0,0.00030463,2]
[406792821,1772196641917,-500.0,0.00030463,2]
[406792822,1772196641926,-256.63658865,0.00030463,2]
[406792823,1772196641936,-500.0,0.00030463,2]
[406792824,1772196641945,-250.0,0.00030463,2]
[406792825,1772196641954,-253.48474784,0.00030463,2]
[406792826,1772196641964,-743.50770149,0.00030463,2]
[406792827,1772196641973,-500.0,0.00030463,2]
[406792828,1772196641982,-500.0,0.00030463,2]
[406792829,1772196641991,-500.0,0.00030463,2]
[406792830,1772196642000,-500.0,0.00030463,2]
[406792831,1772196642009,-151.0,0.00030463,2]
[406792832,1772196642018,-500.0,0.00030463,2]
[406792833,1772196642027,-151.0,0.00030463,2]
[406792834,1772196642036,-500.0,0.00030463,2]
[406792835,1772196642046,-151.0,0.00030463,2]
[406792836,1772196642055,-500.0,0.00030463,2]
[406792837,1772196642064,-151.0,0.00030463,2]
[406792838,1772196642074,-500.0,0.00030463,2]
[406792839,1772196642083,-621.78829552,0.00030463,2]
[406792840,1772196642092,-151.0,0.00030463,2]
[406792841,1772196642102,-500.0,0.00030463,2]
[406792842,1772196642111,-151.0,0.00030463,2]
[406792843,1772196642120,-500.0,0.00030463,2]
[406792844,1772196642129,-500.0,0.00030463,2]
[406792845,1772196642139,-151.0,0.00030463,2]
[406792846,1772196642148,-500.0,0.00030463,2]
[406792847,1772196642157,-500.0,0.00030463,2]
[406792848,1772196642166,-151.0,0.00030463,2]
[406792849,1772196642176,-500.0,0.00030463,2]
[406792850,1772196642185,-151.0,0.00030463,2]
[406792851,1772196642194,-500.0,0.00030463,2]
[406792852,1772196642203,-151.0,0.00030463,2]
[406792853,1772196642212,-500.0,0.00030463,2]
[406792854,1772196642221,-151.0,0.00030463,2]
[406792855,1772196642230,-500.0,0.00030463,2]
[406792856,1772196642240,-151.0,0.00030463,2]
[406792857,1772196642250,-500.0,0.00030463,2]
[406792858,1772196642259,-151.0,0.00030463,2]
[406792859,1772196642268,-500.0,0.00030463,2]
[406792860,1772196642277,-151.0,0.00030463,2]
[406792861,1772196642286,-500.0,0.00030463,2]
[406792862,1772196642296,-500.0,0.00030463,2]
[406792863,1772196642305,-500.0,0.00030463,2]
[406792864,1772196642315,-500.0,0.00030463,2]
[406792865,1772196642324,-500.0,0.00030463,2]
[406792866,1772196642334,-500.0,0.00030463,2]
[406792867,1772196642343,-500.0,0.00030463,2]
[406792868,1772196642352,-250.0,0.00030463,2]
[406792869,1772196642361,-248.71531821,0.00030463,2]
[406792870,1772196642370,-200.0,0.00030463,2]
[406792871,1772196642380,-644.79446246,0.00030518,2]
[406792872,1772196642389,-285.21,0.00030544,2]
[406792873,1772196642399,-668.65185757,0.00030573,2]
[406792874,1772196642411,-618.0,0.00030586,2]
[406792875,1772196642420,-693.3919763,0.00030628,2]
[406792876,1772196642430,-719.04747942,0.00030683,2]
[406792877,1772196642439,-745.65223616,0.00030738,2]
[406792878,1772196642450,-1655.07191603,0.00030739,30]
[406792879,1772196642461,-773.2413689,0.00030793,2]
[406792880,1772196642471,-801.85129955,0.00030848,2]
[406792881,1772196642482,-831.51979763,0.00030903,2]
[406792882,1772196642491,-862.28603014,0.00030958,2]
[406792883,1772196642501,-194.72792766,0.00031011,2]
[406792884,1772196642510,-181.08010149,0.00031011,2]
[406792885,1772196642519,-771.01748645,0.00031011,2]
[406792886,1772196642528,-257.91778498,0.00031011,2]
[406792887,1772196642538,-894.19061326,0.00031013,2]
[406792888,1772196642547,-927.27566595,0.00031068,2]
[406792889,1772196642557,-18967.79323056,0.00031103,2]
[406792890,1772196642567,-961.58486559,0.00031123,2]
[406792891,1772196642575,-997.16350561,0.00031178,2]
[406792892,1772196642585,-515.46401169,0.00031444,2]
[406792893,1772196642594,-150.0,0.0003147,2]
[406792894,1772196642604,-201.93286099,0.00031559,2]
[406792895,1772196642613,-187.78006525,0.00031559,2]
[406792896,1772196642622,-799.54513345,0.00031559,2]
[406792897,1772196642631,-267.46074303,0.00031559,2]
[406792898,1772196642640,-500.0,0.00031699,2]
[406792899,1772196642649,-2000.0,0.000318,2]
[406792900,1772196642659,-1000.0,0.0003187,2]
[406792901,1772196642668,-632.113379,0.0003187,2]
[406792902,1772196642677,-353.1,0.00032053,14]
[406792903,1772196642688,-260.55408572,0.00032107,2]
[406792904,1772196642697,-194.72792766,0.00032107,2]
[406792905,1772196642706,-829.12830338,0.00032107,2]
[406792906,1772196642715,-277.35679052,0.00032107,2]
[406792907,1772196642723,-719.47,0.000324,14]
[406792908,1772196642732,-201.93286099,0.00032655,2]
[406792909,1772196642741,-859.80605061,0.00032655,2]
[406792910,1772196642751,-287.61899177,0.00032655,2]
[406792911,1772196642760,-894.1926491,0.00032877,2]
[406792912,1772196642770,-375.95495348,0.00032877,5]
[406792913,1772196642779,-562.18013926,0.00032877,5]
[406792914,1772196642789,-1309.1,0.000329,14]
[406792915,1772196642798,-500.0,0.00032977,120]
[406792916,1772196642808,-150.0,0.00033043,2]
[406792917,1772196642817,-4963.8,0.000331,14]
[406792918,1772196642826,-6907.92,0.000331,14]
[406792919,1772196642836,-2867.125,0.00033147,34]
[406792920,1772196642851,-347.445,0.00033147,34]
[406792921,1772196642872,-5531.0,0.000332,5]
[406792922,1772196642890,-670.58624095,0.00033202,2]
[406792923,1772196642900,-599.60298507,0.00033202,2]
[406792924,1772196642911,-209.40437684,0.00033203,2]
[406792925,1772196642922,-939.84813957,0.00033203,2]
[406792926,1772196642934,-298.26089446,0.00033203,2]
[406792927,1772196642943,-4265.24,0.00033305,2]
[406792928,1772196642954,-217.15233878,0.00033751,2]
[406792930,1772196642965,-309.29654756,0.00033751,2]
[406792931,1772196642975,-500.0,0.00033836,2]
[406792933,1772196642987,-2158.42,0.00034,30]
[406792934,1772196643007,-509.0,0.0003404,19]
[406792935,1772196643028,-225.18697532,0.00034299,2]
[406792938,1772196643039,-320.74051982,0.00034299,2]
[406792940,1772196643048,-151.0,0.00034456,14]
[406792941,1772196643057,-917.91915087,0.00034459,2]
[406792943,1772196643067,-425.09831696,0.00034459,2]
[406792944,1772196643079,-8623.9870747,0.00034459,2]
[406792945,1772196643090,-1586.97413421,0.00034459,2]
[406792946,1772196643100,-1850.189584,0.00034574,2]
[406792947,1772196643110,-150.0,0.00034696,2]
[406792948,1772196643120,-1500.0,0.00034795,2]
[406792950,1772196643134,-233.51889341,0.00034847,2]
[406792952,1772196643145,-332.60791905,0.00034847,2]
[406792954,1772196643157,-500.0,0.00034867,120]
[406792955,1772196643168,-200.0,0.00035,3]
[406792956,1772196643182,-18967.79323056,0.00035035,2]
[406792957,1772196643195,-322.5,0.00035197,5]
[406792958,1772196643204,-150.0,0.000352,30]
[406792959,1772196643213,-242.15909246,0.00035395,2]
[406792960,1772196643223,-344.91441206,0.00035395,2]
[406792961,1772196643234,-553.0,0.00035401,2]
[406792962,1772196643247,-150.0,0.00035401,2]
[406792963,1772196643257,-150.0,0.00035401,2]
[406792964,1772196643268,-150.0,0.00035401,2]
[406792965,1772196643278,-150.0,0.00035401,2]
[406792966,1772196643290,-255.0,0.00035401,2]
[406792967,1772196643299,-515.46401169,0.0003543,2]
[406792968,1772196643310,-2000.0,0.000355,2]
[406792969,1772196643322,-208.66940579,0.00035589,30]
[406792970,1772196643331,-544.21519612,0.00035616,5]
[406792971,1772196643341,-1309.1,0.000357,14]
[406792972,1772196643352,-1798.68,0.000357,30]
[406792973,1772196643482,-1040.2,0.00035884,5]
[406792974,1772196643492,-455.69291,0.00035888,30]
[406792975,1772196643501,-800.0,0.000359,13]
[406792976,1772196643511,-695.39793187,0.00035941,2]
[406792977,1772196643521,-621.78829552,0.00035941,2]
[406792978,1772196643531,-251.11897888,0.00035943,2]
[406792979,1772196643540,-357.6762453,0.00035943,2]
[406792980,1772196643549,-205.05011286,0.00035961,2]
[406792981,1772196643558,-11017.41673616,0.00036007,2]
[406792982,1772196643567,-2517.99,0.00036008,10]
[406792983,1772196643577,-25000.0,0.0003601,10]
[406792984,1772196643586,-160.67,0.00036026,10]
[406792985,1772196643595,-5000.0,0.00036038,10]
[406792986,1772196643604,-5000.0,0.00036041,10]
[406792987,1772196643613,-5000.0,0.00036046,10]
[406792988,1772196643622,-5000.0,0.00036061,10]
[406792989,1772196643631,-891.44226392,0.00036077,2]
[406792990,1772196643640,-455.69291,0.00036088,30]
[406792991,1772196643650,-1000.0,0.00036091,2]
[406792992,1772196643658,-1000.0,0.00036091,2]
[406792993,1772196643667,-1000.0,0.00036091,2]
[406792994,1772196643676,-1000.0,0.00036091,2]
[406792995,1772196643685,-1000.0,0.00036091,2]
[406792996,1772196643694,-1000.0,0.000361,2]
[406792997,1772196643703,-1000.0,0.000361,2]
[406792998,1772196643712,-1000.0,0.000361,2]
[406792999,1772196643722,-1000.0,0.000361,2]
[406793000,1772196643731,-1000.0,0.000361,2]
[406793001,1772196643740,-160.0,0.000361,10]
[406793002,1772196643750,-10574.96,0.000361,2]
[406793003,1772196643760,-1883.45,0.00036107,10]
[406793005,1772196643769,-5000.0,0.00036112,10]
[406793007,1772196643777,-5000.0,0.00036126,10]
[406793009,1772196643786,-5000.0,0.00036141,10]
[406793010,1772196643795,-5000.0,0.00036155,10]
[406793011,1772196643804,-1698.94,0.00036177,10]
[406793012,1772196643813,-2500.0,0.00036177,10]
[406793013,1772196643822,-5000.0,0.00036198,10]
[406793014,1772196643830,-6907.92,0.000362,14]
[406793015,1772196643840,-455.69291,0.00036288,30]
[406793016,1772196643848,-5000.0,0.0003636,10]
[406793017,1772196643858,-5000.0,0.00036394,10]
[406793018,1772196643867,-4724.97,0.00036407,10]
[406793019,1772196643876,-150.0,0.0003643,2]
[406793020,1772196643885,-1250.5,0.00036435,10]
[406793021,1772196643894,-1657.9,0.00036471,10]
[406793022,1772196643902,-455.69291,0.00036488,30]
[406793023,1772196643912,-260.4103811,0.00036491,2]
[406793024,1772196643921,-370.91026638,0.00036491,2]
[406793025,1772196643930,-5000.0,0.00036496,10]
[406793026,1772196643939,-548.3,0.00036496,120]
[406793027,1772196643948,-25000.0,0.00036497,10]
[406793028,1772196643958,-4963.8,0.000365,14]
[406793029,1772196643967,-1040.2,0.00036572,5]
[406793030,1772196643976,-5000.0,0.00036584,10]
[406793031,1772196643985,-2000.0,0.00036587,120]
[406793032,1772196643994,-2000.0,0.00036587,120]
[406793033,1772196644003,-2000.0,0.00036587,120]
[406793034,1772196644012,-2000.0,0.00036587,120]
[406793035,1772196644021,-2000.0,0.00036587,120]
[406793036,1772196644030,-2000.0,0.00036587,120]
[406793037,1772196644049,-2000.0,0.00036587,120]
[406793038,1772196644060,-2000.0,0.00036587,120]
[406793039,1772196644069,-2000.0,0.00036587,120]
[406793040,1772196644078,-2000.0,0.00036587,120]
[406793041,1772196644088,-2000.0,0.00036587,120]
[406793042,1772196644097,-2000.0,0.00036587,120]
[406793043,1772196644106,-2000.0,0.00036587,120]
[406793044,1772196644116,-2000.0,0.00036587,120]
[406793045,1772196644125,-2000.0,0.00036587,120]
[406793046,1772196644135,-2000.0,0.00036587,120]
[406793047,1772196644143,-2000.0,0.00036587,120]
[406793048,1772196644153,-2000.0,0.00036587,120]
[406793049,1772196644162,-2000.0,0.00036587,120]
[406793050,1772196644171,-1250.51,0.00036618,10]
[406793051,1772196644180,-1000.0,0.0003667,2]
[406793052,1772196644190,-500.0,0.0003667,2]
[406793053,1772196644199,-455.69291,0.00036688,30]
[406793054,1772196644209,-5000.0,0.00036695,10]
[406793055,1772196644223,-5000.0,0.00036703,10]
[406793056,1772196644233,-5000.0,0.00036718,10]
[406793057,1772196644242,-2500.0,0.00036728,10]
[406793058,1772196644252,-5000.0,0.00036732,10]
[406793059,1772196644262,-5000.0,0.00036759,10]
[406793060,1772196644272,-191.03,0.0003682,10]
[406793061,1772196644281,-25000.0,0.0003685,10]
[406793062,1772196644291,-5000.0,0.0003686,10]
[406793063,1772196644301,-1518.9763,0.00036888,7]
[406793064,1772196644310,-455.69291,0.00036888,30]
[406793065,1772196644320,-277.0,0.000369,120]
[406793066,1772196644329,-10574.96,0.000369,2]
[406793067,1772196644338,-166.0,0.000369,120]
[406793068,1772196644348,-167.0,0.000369,120]
[406793069,1772196644357,-3577.25,0.00036956,10]
[406793070,1772196644367,-1309.1,0.00037,14]
[406793071,1772196644376,-174.00015664,0.00037,10]
[406793072,1772196644385,-160.0,0.00037,120]
[406793073,1772196644394,-2000.0,0.00037,7]
[406793074,1772196644404,-270.0455652,0.00037039,2]
[406793075,1772196644417,-384.63394623,0.00037039,2]
[406793076,1772196644426,-455.69291,0.00037088,30]
[406793077,1772196644435,-151.25687106,0.000372,120]
[406793078,1772196644446,-151.25687105,0.000372,120]
[406793079,1772196644455,-151.25687105,0.000372,120]
[406793080,1772196644464,-151.25687105,0.000372,120]
[406793081,1772196644474,-1040.2,0.0003726,7]
[406793082,1772196644484,-204.48,0.0003726,120]
[406793083,1772196644493,-455.69291,0.00037288,30]
[406793084,1772196644505,-455.69291,0.00037488,30]
[406793085,1772196644515,-3856.59986192,0.00037547,5]
[406793086,1772196644524,-280.03725112,0.00037587,2]
[406793087,1772196644534,-398.86540225,0.00037587,2]
[406793088,1772196644543,-455.69291,0.00037688,30]
[406793089,1772196644552,-10574.96,0.000378,2]
[406793090,1772196644562,-509.0,0.0003787,22]
[406793091,1772196644572,-1214.46691542,0.00037887,7]
[406793092,1772196644580,-77434.31592349,0.00037887,7]
[406793093,1772196644589,-101666.21645944,0.00037887,7]
[406793094,1772196644598,-455.69291,0.00037888,30]
[406793095,1772196644607,-1040.2,0.00037947,7]
[406793096,1772196644616,-174.00015664,0.00038,30]
[406793097,1772196644625,-174.00015664,0.00038,7]
[406793098,1772196644635,-160.0,0.00038,30]
[406793099,1772196644644,-462.24,0.00038034,30]
[406793100,1772196644654,-455.69291,0.00038088,30]
[406793101,1772196644664,-882.46526268,0.000381,33]
[406793102,1772196644674,-290.39862941,0.00038135,2]
[406793103,1772196644683,-150.0,0.00038252,2]
[406793104,1772196644693,-455.69291,0.00038288,30]
[406793105,1772196644703,-241.0,0.00038321,7]
[406793106,1772196644712,-500.0,0.00038329,2]
[406793107,1772196644722,-8058.0,0.00038356,120]
[406793108,1772196644731,-10000.0,0.00038356,120]
[406793109,1772196644740,-323.0,0.00038356,120]
[406793110,1772196644749,-237.37622037,0.0003838,5]
[406793111,1772196644758,-500.0,0.00038429,120]
[406793112,1772196644767,-455.69291,0.00038488,30]
[406793113,1772196644777,-500.0,0.000386,2]
[406793114,1772196644785,-1040.2,0.00038635,7]
[406793115,1772196644794,-500.0,0.00038655,2]
[406793116,1772196644803,-721.12765535,0.0003868,2]
[406793117,1772196644813,-644.79446246,0.0003868,2]
[406793118,1772196644823,-301.1433787,0.00038683,2]
[406793119,1772196644832,-455.69291,0.00038688,30]
[406793120,1772196644841,-10574.96,0.000387,30]
[406793121,1772196644851,-500.0,0.0003871,2]
[406793122,1772196644860,-277.0,0.00038745,120]
[406793123,1772196644869,-166.0,0.00038745,120]
[406793124,1772196644879,-167.0,0.00038745,120]
[406793125,1772196644889,-500.0,0.00038764,2]
[406793126,1772196644899,-500.0,0.00038819,2]
[406793127,1772196644908,-845.0,0.00038861,11]
[406793128,1772196644918,-500.0,0.00038874,2]
[406793129,1772196644927,-385.96002226,0.00038904,5]
[406793130,1772196644937,-500.0,0.00038904,2]
[406793131,1772196644946,-500.0,0.00038929,2]
[406793132,1772196644955,-18967.79323056,0.00038968,2]
[406793133,1772196644964,-500.0,0.0003897,2]
[406793134,1772196644973,-1000.0,0.0003897,2]
[406793135,1772196644982,-500.0,0.00038984,2]
[406793136,1772196644991,-150.0,0.00039,120]
[406793137,1772196645001,-1309.1,0.00039,14]
[406793138,1772196645010,-160.0,0.00039,120]
[406793139,1772196645020,-160.0,0.00039,30]
[406793140,1772196645029,-500.0,0.00039038,2]
[406793141,1772196645039,-455.69291,0.00039088,30]
[406793142,1772196645048,-500.0,0.00039093,2]
[406793143,1772196645057,-500.0,0.00039148,2]
[406793144,1772196645067,-2000.0,0.000392,2]
[406793145,1772196645076,-500.0,0.00039203,2]
[406793146,1772196645086,-500.0,0.00039258,2]
[406793147,1772196645095,-455.69291,0.00039288,30]
[406793148,1772196645104,-161.85367836,0.00039312,2]
[406793149,1772196645114,-1040.2,0.00039322,30]
[406793150,1772196645123,-6907.92,0.000394,14]
[406793151,1772196645133,-515.46401169,0.00039415,2]
[406793152,1772196645143,-27725.0,0.00039425,120]
[406793153,1772196645152,-34181.7070957,0.00039462,2]
[406793154,1772196645162,-455.69291,0.00039488,30]
[406793155,1772196645171,-4963.8,0.000395,14]
[406793156,1772196645180,-12157.0,0.00039585,5]
[406793157,1772196645189,-455.69291,0.00039688,30]
[406793158,1772196645198,-150.0,0.000397,30]
[406793159,1772196645207,-455.69291,0.00039888,30]
[406793160,1772196645216,-1850.189584,0.00039987,2]
[406793161,1772196645358,-417.12,0.0004,120]
[406793162,1772196645368,-956.7,0.0004,120]
[406793163,1772196645377,-4038.47,0.0004,120]
[406793164,1772196645387,-642.27,0.0004,120]
[406793165,1772196645396,-156.0,0.0004,120]
[406793166,1772196645409,-152.0,0.0004,120]
[406793167,1772196645419,-3600.15629349,0.0004,120]
[406793168,1772196645428,-222.91,0.0004,120]
[406793169,1772196645438,-157.49128306,0.0004,120]
[406793170,1772196645450,-150.69,0.0004,2]
[406793171,1772196645460,-150.69,0.0004,2]
[406793172,1772196645469,-150.69,0.0004,2]
[406793173,1772196645479,-150.69,0.0004,2]
[406793174,1772196645489,-150.69,0.0004,2]
[406793175,1772196645499,-150.69,0.0004,2]
[406793176,1772196645508,-150.69,0.0004,2]
[406793177,1772196645517,-150.69,0.0004,2]
[406793178,1772196645526,-150.69,0.0004,2]
[406793179,1772196645535,-150.69,0.0004,2]
[406793180,1772196645545,-150.69,0.0004,2]
[406793181,1772196645554,-150.69,0.0004,2]
[406793182,1772196645563,-150.69,0.0004,2]
[406793183,1772196645572,-150.69,0.0004,2]
[406793184,1772196645581,-150.69,0.0004,2]
[406793185,1772196645590,-150.69,0.0004,2]
[406793186,1772196645599,-150.69,0.0004,2]
[406793187,1772196645608,-150.69,0.0004,2]
[406793188,1772196645618,-150.69,0.0004,2]